bitfinex-derivatives/quotes_ETHF0:USTF0_20250804
["timestamp","ask_amount","ask_price","bid_price","bid_amount"]
[1754283285321,2.7063112,3536.5,3536.4,2.8167]
[1754283287432,2.7063112,3536.5,3536.4,1.751]
[1754283287924,6.55718176,3536.5,3536.4,1.0088]
[1754283288831,6.55718176,3536.5,3535.9,3.77337]
[1754283288832,0.0694,3536.3,3536.2,0.3891]
[1754283289134,2.7740112,3536.3,3536.2,2.8047]
[1754283289528,1.8995,3536.0,3535.9,6.0125]
[1754283289726,1.9429,3536.0,3535.9,6.0125]
[1754283289933,1.8301,3536.0,3535.9,6.0125]
[1754283290631,0.56553,3536.2,3535.9,6.0125]
[1754283290831,1.8301,3536.1,3536.0,2.8047]
[1754283294734,0.56552,3536.3,3536.2,2.8047]
[1754283295040,2.0839,3536.4,3536.3,2.8047]
[1754283295236,3.22740427,3536.4,3536.3,2.8047]
[1754283296038,1.56020427,3536.4,3536.3,2.8047]
[1754283296341,0.56547,3536.6,3536.3,2.8047]
[1754283296543,0.8318232,3536.5,3536.4,2.8047]
[1754283296743,1.2485232,3536.5,3536.4,2.8047]
[1754283296930,0.8318232,3536.5,3536.4,2.8047]
[1754283297136,0.8318232,3536.6,3536.5,3.37018]
[1754283297530,0.8318232,3536.7,3536.6,2.8047]
[1754283297735,0.8318232,3537.1,3537.0,1.0854]
[1754283297939,0.19680058,3537.1,3537.0,3.3701]
[1754283298338,0.6298,3537.3,3537.0,3.3701]
[1754283298538,0.19677106,3537.2,3537.1,2.8047]
[1754283299937,0.61347106,3537.2,3537.1,2.8047]
[1754283300632,2.02687106,3537.2,3537.1,2.8047]
[1754283300937,2.09627106,3537.2,3537.1,2.8047]
[1754283302339,1.8995,3537.2,3537.1,2.8047]
[1754283302745,1.8301,3537.2,3537.1,2.8047]
[1754283303346,1.76562,3537.5,3537.4,1.0854]
[1754283303538,1.39516175,3537.6,3537.4,1.0854]
[1754283303747,0.82985175,3537.5,3537.4,2.8047]
[1754283303938,3.22526175,3537.6,3537.5,2.1136]
[1754283304144,3.22526175,3537.6,3537.5,2.8047]
[1754283304940,0.56531,3537.6,3537.5,2.8047]
[1754283305244,3.77309,3537.7,3537.5,2.8047]
[1754283305440,3.77309,3537.7,3537.6,1.0854]
[1754283305639,5.60319,3537.7,3537.6,2.8047]
[1754283305845,5.0379,3537.7,3537.6,2.8047]
[1754283306039,3.6245,3537.7,3537.6,3.37]
[1754283306441,3.2078,3537.7,3537.6,3.37]
[1754283307237,3.2078,3537.7,3537.6,2.8047]
[1754283307444,3.6245,3537.7,3537.6,2.8047]
[1754283307746,0.7284,3537.7,3537.6,2.8047]
[1754283307936,1.8301,3537.7,3537.6,2.8047]
[1754283308541,1.471,3537.7,3537.6,1.0158]
[1754283308748,1.9429,3537.3,3537.2,1.7121]
[1754283309047,1.9429,3537.3,3537.2,1.0158]
[1754283309746,1.9429,3537.3,3537.2,0.6267]
[1754283310245,5.1507,3537.3,3537.2,0.6267]
[1754283311053,5.1507,3537.3,3537.2,2.8047]
[1754283311253,1.9429,3537.3,3537.2,2.8047]
[1754283311845,1.8301,3537.3,3537.2,2.8047]
[1754283312547,1.8995,3537.3,3537.2,2.8047]
[1754283312747,1.9429,3537.3,3537.2,2.8047]
[1754283313046,1.471,3537.1,3536.7,4.39994]
[1754283313244,5.79377056,3536.8,3536.7,3.5969]
[1754283313550,2.50836,3536.6,3536.5,1.7121]
[1754283314447,4.9665,3536.9,3536.8,1.1381]
[1754283314754,4.9665,3536.9,3536.8,2.7844]
[1754283315649,3.9093,3536.9,3536.8,2.7844]
[1754283316047,5.0216,3536.9,3536.8,1.736]
[1754283316541,0.56543,3536.8,3536.4,0.56548]
[1754283316751,1.7847,3536.4,3536.3,2.7844]
[1754283316955,0.4104,3536.4,3536.3,2.7844]
[1754283317146,1.04926,3536.7,3536.3,2.7844]
[1754283317345,1.4676,3536.5,3536.4,2.0649]
[1754283317545,1.7587,3536.5,3536.4,2.7844]
[1754283317754,0.7015,3536.5,3536.4,3.34989]
[1754283317950,1.62265,3536.7,3536.5,1.6463]
[1754283318154,2.37355,3536.7,3536.6,1.0118]
[1754283319457,3.2078,3536.9,3536.8,1.1381]
[1754283319658,3.2078,3536.9,3536.8,2.7844]
[1754283320354,3.6182,3536.9,3536.8,2.7844]
[1754283320554,4.9665,3536.9,3536.8,2.7844]
[1754283322347,3.2078,3536.9,3536.8,2.7844]
[1754283322547,4.9969,3537.3,3537.2,2.7844]
[1754283322953,0.7015,3537.3,3537.2,2.7844]
[1754283323149,2.58832434,3537.6,3537.5,2.7844]
[1754283324063,1.53112434,3537.6,3537.5,2.7844]
[1754283324448,0.82962434,3537.6,3537.5,2.7844]
[1754283324852,4.9665,3537.7,3537.6,2.1865]
[1754283325049,5.79647627,3537.7,3537.6,2.7844]
[1754283326053,5.84587627,3537.7,3537.6,1.0118]
[1754283326653,0.7015,3537.4,3537.3,1.8809]
[1754283326860,2.37343,3537.4,3537.3,2.7844]
[1754283327160,0.7015,3537.1,3537.0,2.3705]
[1754283327359,1.7587,3537.1,3537.0,2.7844]
[1754283328857,1.8081,3537.1,3536.7,4.37114]
[1754283329061,3.2078,3537.2,3536.9,3.34982]
[1754283329257,0.7015,3537.1,3537.0,2.7844]
[1754283329558,1.0876,3537.0,3536.9,2.1865]
[1754283329761,1.7587,3537.0,3536.9,2.7844]
[1754283330557,0.7015,3537.0,3536.9,2.7844]
[1754283331162,3.2078,3537.2,3537.0,0.5979]
[1754283331357,4.4235,3537.2,3537.1,2.7844]
[1754283331665,3.2078,3537.2,3537.1,2.7844]
[1754283331868,4.9665,3537.8,3537.7,1.1381]
[1754283332066,6.81353538,3537.8,3537.7,2.7844]
[1754283332565,5.983,3537.8,3537.7,2.7844]
[1754283332966,3.9093,3537.8,3537.7,2.7844]
[1754283333664,4.4827,3537.8,3537.7,2.7844]
[1754283333869,4.9665,3537.8,3537.7,2.7844]
[1754283334563,5.983,3537.8,3537.7,2.7844]
[1754283335166,5.983,3537.8,3537.5,0.5979]
[1754283335361,2.7752,3537.7,3537.6,0.5979]
[1754283335562,2.7752,3537.7,3537.6,1.4304]
[1754283336466,1.0952,3537.7,3537.6,0.8325]
[1754283336668,1.0952,3537.7,3537.6,1.4304]
[1754283336968,2.7752,3537.7,3537.6,1.4304]
[1754283337862,2.7752,3537.7,3537.6,1.736]
[1754283338063,2.7752,3537.7,3537.6,2.1781]
[1754283338470,1.0952,3537.3,3537.2,2.1865]
[1754283339166,2.7752,3537.3,3537.2,2.7844]
[1754283340070,2.7752,3537.7,3537.6,2.7844]
[1754283340567,2.7752,3537.7,3537.6,1.736]
[1754283341867,2.7752,3537.7,3537.6,2.1781]
[1754283342068,2.7752,3537.7,3537.6,2.7844]
[1754283344372,2.1524,3537.7,3537.6,2.7844]
[1754283344970,2.7676,3537.7,3537.6,2.7844]
[1754283346974,2.7676,3537.7,3537.3,0.56534]
[1754283347277,1.0977,3537.1,3536.9,0.5659]
[1754283347478,1.0977,3537.1,3537.0,0.5659]
[1754283347678,2.8086,3537.1,3537.0,1.6969]
[1754283347880,2.8086,3537.1,3537.0,2.7655]
[1754283352877,0.7127,3537.1,3537.0,3.3309]
[1754283353182,6.0164,3537.4,3537.3,2.7655]
[1754283353380,6.84858364,3537.4,3537.0,0.4819]
[1754283353579,2.8086,3537.1,3537.0,2.7655]
[1754283356376,1.8084,3537.1,3537.0,2.7655]
[1754283356576,1.1955,3537.3,3537.2,1.131]
[1754283356782,2.8086,3537.3,3537.2,2.7655]
[1754283358081,0.7127,3537.3,3537.2,2.1996]
[1754283358379,2.8086,3537.3,3537.2,1.131]
[1754283358783,2.8086,3537.3,3537.2,2.7655]
[1754283359284,3.64071377,3537.3,3537.2,2.7655]
[1754283362384,2.8086,3537.3,3537.2,2.7655]
[1754283362985,2.1934,3537.3,3537.2,2.7655]
[1754283363185,1.0977,3537.6,3537.5,1.131]
[1754283363485,1.92989407,3537.6,3537.5,2.7655]
[1754283363885,3.64079407,3537.6,3537.5,2.7655]
[1754283364785,3.64058397,3537.6,3537.5,2.7655]
[1754283367186,1.54468397,3537.6,3537.5,2.7655]
[1754283369485,2.64038397,3537.6,3537.5,2.7655]
[1754283369881,3.25558397,3537.6,3537.5,2.7655]
[1754283370081,3.64058397,3537.6,3537.5,2.7655]
[1754283373089,3.02538397,3537.6,3537.5,3.33082]
[1754283373288,1.54468397,3537.6,3537.5,3.33082]
[1754283375898,0.83198397,3537.6,3537.5,3.33082]
[1754283376300,1.83838397,3537.6,3537.5,3.33082]
[1754283376602,2.28178397,3537.6,3537.5,3.33082]
[1754283377802,2.59028397,3537.6,3537.5,3.33082]
[1754283378501,2.59028397,3537.6,3537.5,2.7655]
[1754283381198,3.54228397,3537.6,3537.5,2.7655]
[1754283384996,0.83198397,3537.6,3537.5,2.7655]
[1754283385196,2.14688397,3537.6,3537.5,2.7655]
[1754283385401,2.59028397,3537.6,3537.5,2.7655]
[1754283385595,3.54228397,3537.6,3537.5,2.7655]
[1754283399514,0.83198397,3537.6,3537.4,0.56533]
[1754283399711,1.72026482,3538.0,3537.9,0.6792]
[1754283399913,2.78850232,3538.0,3537.9,2.7158]
[1754283400214,3.17020232,3538.0,3537.9,2.7158]
[1754283400719,1.03020232,3538.0,3537.9,2.7158]
[1754283402315,0.83307638,3538.0,3537.9,2.7158]
[1754283403317,3.2078,3538.1,3538.0,1.63014]
[1754283403523,4.85468596,3538.1,3538.0,3.28104]
[1754283403819,5.16318596,3538.1,3538.0,3.28104]
[1754283406021,5.75588596,3538.1,3538.0,3.28104]
[1754283406220,5.5588,3538.1,3538.0,3.28104]
[1754283410118,5.9408,3538.1,3538.0,3.28104]
[1754283411422,2.733,3538.1,3538.0,3.28104]
[1754283411623,2.1403,3538.1,3538.0,3.28104]
[1754283412324,2.733,3538.1,3538.0,3.28104]
[1754283413616,0.305,3537.7,3537.5,3.2078]
[1754283413821,2.6772,3537.5,3537.4,0.6915]
[1754283414024,1.0798,3537.3,3537.2,2.32927]
[1754283414316,2.6772,3537.3,3537.2,3.30547]
[1754283415127,2.6772,3537.3,3537.1,3.2078]
[1754283415128,1.0798,3537.3,3536.8,1.1845]
[1754283415425,3.2078,3537.5,3536.8,1.1845]
[1754283415426,2.0845,3536.9,3536.8,3.30554]
[1754283415928,2.6772,3536.9,3536.8,3.30554]
[1754283421834,1.7025,3536.9,3536.8,3.30554]
[1754283422327,2.2952,3536.9,3536.8,3.30554]
[1754283422726,2.6772,3536.9,3536.8,3.30554]
[1754283432737,0.56536,3537.4,3536.5,24.7553061]
[1754283432738,2.6772,3537.2,3537.1,3.30548]
[1754283433936,2.6772,3537.2,3537.1,2.23308]
[1754283434140,2.6772,3537.2,3537.1,3.26548]
[1754283434531,2.0845,3537.2,3537.1,3.26548]
[1754283434731,0.3928,3537.2,3537.1,3.26548]
[1754283434932,0.6873,3537.4,3537.3,3.21016]
[1754283435143,0.394,3537.6,3537.5,3.21013]
[1754283435633,2.2881,3537.8,3537.7,3.2101]
[1754283438139,0.6873,3537.8,3537.7,3.2101]
[1754283438338,1.7175,3537.8,3537.7,3.2101]
[1754283440435,2.6567,3537.8,3537.7,3.2101]
[1754283444940,7.0753961,3537.8,3536.9,3.2078]
[1754283445244,2.6567,3537.0,3536.9,3.21024]
[1754283445444,2.6567,3537.3,3537.2,3.21019]
[1754283445638,1.7175,3537.3,3537.2,3.21019]
[1754283445841,0.6873,3537.3,3537.2,3.21019]
[1754283446144,0.6873,3537.5,3537.4,3.21016]
[1754283446343,2.0861,3537.5,3537.4,3.21016]
[1754283446545,2.2627,3537.4,3537.3,0.56536]
[1754283446844,2.6567,3537.4,3537.3,0.56536]
[1754283447741,2.6567,3537.4,3537.3,1.12506]
[1754283449038,2.6567,3537.4,3537.3,1.6124]
[1754283449243,2.6567,3537.4,3537.3,2.6448]
[1754283449544,1.0559,3537.2,3537.1,0.9285]
[1754283449745,2.6567,3537.2,3537.1,2.1778]
[1754283450046,2.6567,3537.2,3537.1,3.2102]
[1754283452843,1.2613,3537.2,3537.1,3.2102]
[1754283453039,2.6567,3537.2,3537.1,3.2102]
[1754283454043,1.7175,3537.2,3537.1,3.2102]
[1754283454634,0.6873,3537.2,3537.1,3.2102]
[1754283454838,3.2078,3537.8,3537.2,0.5597]
[1754283455040,3.2078,3537.8,3537.6,3.21012]
[1754283455041,3.48436794,3537.7,3537.6,3.21012]
[1754283455347,2.6567,3537.7,3537.6,3.21012]
[1754283462955,3.2078,3537.8,3537.6,3.21012]
[1754283463161,4.9253,3537.8,3537.7,2.6448]
[1754283463454,6.31473598,3537.8,3537.7,2.6448]
[1754283463655,4.72343598,3537.8,3537.7,2.6448]
[1754283463859,0.6873,3537.8,3537.7,2.6448]
[1754283465156,1.2485,3537.8,3537.7,2.6448]
[1754283465356,1.7275,3537.8,3537.7,2.6448]
[1754283465863,2.2852,3537.8,3537.7,2.6448]
[1754283466059,2.6842,3538.1,3538.0,1.59797]
[1754283466257,3.51270021,3538.1,3538.0,3.18037]
[1754283467865,2.6842,3538.1,3538.0,3.18037]
[1754283468163,2.1265,3538.1,3538.0,3.18037]
[1754283469460,3.9175,3538.6,3538.5,0.56519]
[1754283469665,6.91955875,3538.6,3538.5,1.14119]
[1754283470358,6.91955875,3538.6,3538.5,2.86149]
[1754283470668,6.72030369,3538.6,3538.5,2.86149]
[1754283471564,6.72030369,3538.6,3538.5,2.30509]
[1754283471765,6.72030369,3538.6,3538.5,1.85509]
[1754283474767,6.72030369,3538.6,3538.5,3.18029]
[1754283475869,1.0863,3537.8,3537.7,3.18042]
[1754283476166,2.6842,3537.8,3537.7,3.18042]
[1754283477957,0.6997,3537.3,3537.2,3.1805]
[1754283478163,2.2976,3537.3,3537.2,3.1805]
[1754283478365,2.6842,3537.3,3537.2,3.1805]
[1754283482369,1.0367,3537.1,3536.8,0.576]
[1754283482567,3.77318,3537.4,3536.8,0.576]
[1754283482568,2.6842,3536.9,3536.8,2.6151]
[1754283484174,2.6842,3536.9,3536.8,3.18056]
[1754283487370,3.2078,3537.0,3536.8,1.59816]
[1754283487575,3.2078,3537.5,3537.4,1.0327]
[1754283487772,3.2078,3537.5,3537.4,2.6151]
[1754283487971,4.2941,3537.5,3537.4,2.6151]
[1754283488171,2.6842,3537.5,3537.4,2.6151]
[1754283490074,0.6997,3537.5,3537.4,2.6151]
[1754283490280,1.7399,3537.7,3537.6,2.6151]
[1754283490476,5.892,3537.9,3537.8,2.6151]
[1754283491679,3.5844,3537.9,3537.8,2.6151]
[1754283492081,4.9477,3537.9,3537.8,2.6151]
[1754283492482,5.5054,3537.9,3537.8,2.6151]
[1754283494482,5.892,3537.9,3537.8,2.6151]
[1754283496782,3.2078,3537.9,3537.8,1.2899]
[1754283496983,4.8018,3538.3,3538.2,2.12074]
[1754283497180,5.62976104,3538.3,3538.2,0.56524]
[1754283497381,5.3506,3538.3,3538.2,0.56524]
[1754283497685,5.8093,3538.3,3538.2,0.56524]
[1754283498075,5.4365,3538.3,3538.2,3.16174]
[1754283498277,5.8093,3538.3,3538.2,3.16174]
[1754283501893,4.2643,3538.3,3537.9,1.41324]
[1754283502186,2.6025,3538.1,3538.0,0.56528]
[1754283504296,1.0565,3538.1,3537.8,0.5653]
[1754283504596,2.6025,3537.9,3537.8,0.5653]
[1754283506494,0.9972,3537.8,3536.8,1.88016]
[1754283506795,2.6025,3537.1,3537.0,2.022]
[1754283508594,0.9133,3537.1,3537.0,2.3022]
[1754283508794,0.5488,3537.1,3537.0,2.3022]
[1754283510292,3.2078,3537.4,3537.3,0.3005]
[1754283510596,5.8103,3537.4,3537.3,2.022]
[1754283511998,5.8103,3537.4,3537.3,2.58739]
[1754283512997,4.8131,3537.9,3537.8,0.56531]
[1754283513298,6.63880354,3537.9,3537.8,2.58731]
[1754283513697,6.63880354,3537.9,3537.8,2.22911]
[1754283516605,6.63880354,3537.9,3537.8,2.58731]
[1754283517801,6.63880354,3537.9,3537.8,2.22911]
[1754283518400,6.63880354,3537.9,3537.8,0.56531]
[1754283519607,6.63880354,3537.9,3537.8,1.03181]
[1754283520106,6.63880354,3537.9,3537.8,0.56531]
[1754283520502,6.63880354,3537.9,3537.7,0.56532]
[1754283520706,3.43100354,3537.8,3537.7,0.56532]
[1754283523705,3.43100354,3537.8,3537.7,1.03182]
[1754283524112,3.43100354,3537.8,3537.7,1.91452]
[1754283525411,3.43232586,3537.8,3537.7,2.29682]
[1754283530915,3.43232586,3537.8,3537.7,1.71462]
[1754283531118,3.43232586,3537.8,3537.7,2.68752]
[1754283531414,2.43512586,3537.8,3537.7,2.68752]
[1754283531610,2.43512586,3537.8,3537.7,2.99342]
[1754283531812,2.98822586,3537.8,3537.7,2.99342]
[1754283532016,2.43512586,3537.8,3537.7,2.99342]
[1754283532417,2.98822586,3537.8,3537.7,2.99342]
[1754283532627,3.46292586,3537.8,3537.7,2.99342]
[1754283534813,0.82982586,3537.8,3537.7,6.8610161]
[1754283535121,0.5417,3538.7,3538.6,2.4035]
[1754283535320,0.19854694,3538.7,3538.6,6.2710961]
[1754283535518,4.20876482,3538.9,3538.8,1.0778]
[1754283535717,4.75046482,3538.9,3538.8,2.4035]
[1754283536421,3.7495,3538.9,3538.8,2.4035]
[1754283539125,4.6935,3538.9,3538.8,2.4035]
[1754283540319,0.9326,3538.9,3538.8,2.4035]
[1754283540520,0.5417,3538.9,3538.8,2.4082]
[1754283542321,0.3909,3539.2,3539.1,1.0198]
[1754283542629,0.9326,3539.2,3539.1,2.4082]
[1754283543120,0.5417,3539.2,3539.1,2.4082]
[1754283543927,3.2078,3539.7,3539.1,1.3304]
[1754283544123,5.829,3539.7,3539.6,2.66262]
[1754283557044,5.829,3539.7,3539.6,2.0976]
[1754283557243,1.0285,3539.4,3539.2,0.56508]
[1754283557543,5.7783,3539.3,3539.2,0.56508]
[1754283558441,5.7783,3539.3,3539.2,1.60518]
[1754283562246,1.0285,3539.0,3538.9,0.56513]
[1754283562447,2.5705,3539.0,3538.9,0.56513]
[1754283563851,2.5705,3539.0,3538.9,1.04383]
[1754283564655,2.5705,3539.0,3538.9,1.60523]
[1754283564854,2.5705,3539.0,3538.9,1.96713]
[1754283565260,2.5705,3539.0,3538.9,2.26633]
[1754283566150,2.5705,3539.0,3538.9,2.65443]
[1754283571865,0.544,3539.0,3538.9,2.95483]
[1754283572564,1.4317,3539.0,3538.9,2.95483]
[1754283573261,1.9005,3539.0,3538.9,2.95483]
[1754283575866,5.7783,3539.3,3539.2,2.65439]
[1754283576167,6.60334921,3539.3,3539.2,2.65439]
[1754283579062,5.30154921,3539.3,3539.2,2.65439]
[1754283579268,6.60334921,3539.3,3539.2,2.65439]
[1754283579470,6.60334921,3539.3,3539.2,2.95479]
[1754283579767,6.60334921,3539.3,3539.2,2.65439]
[1754283587472,4.03284921,3539.3,3539.2,6.5219861]
[1754283587677,0.82504921,3539.3,3539.2,6.5219861]
[1754283587873,0.82504921,3539.3,3539.2,6.8021861]
[1754283588273,1.35044921,3539.3,3539.2,6.8021861]
[1754283588474,0.5254,3539.3,3539.2,6.8021861]
[1754283588879,2.5524,3539.3,3539.2,6.5219861]
[1754283590071,2.5524,3539.3,3539.2,6.8021861]
[1754283591780,1.1653,3539.3,3539.2,6.8021861]
[1754283591974,0.5254,3539.3,3539.2,6.8021861]
[1754283594579,2.5524,3539.3,3539.2,0.56509]
[1754283595177,2.5524,3539.3,3539.2,2.60399]
[1754283596487,2.5524,3539.3,3539.2,6.7517861]
[1754283596783,5.2348,3539.7,3539.6,2.60392]
[1754283596985,6.06034464,3539.7,3539.6,2.60392]
[1754283597189,6.58574464,3539.7,3539.6,2.60392]
[1754283598083,6.58574464,3539.7,3539.6,0.56502]
[1754283598385,6.58574464,3539.7,3539.6,1.11562]
[1754283598587,6.58574464,3539.7,3539.6,1.58852]
[1754283598985,6.58574464,3539.7,3539.6,2.24082]
[1754283599187,6.58574464,3539.7,3539.6,2.60392]
[1754283600488,0.29389,3539.7,3539.6,2.60392]
[1754283600693,0.82541833,3539.9,3539.8,3.17599]
[1754283600889,0.82541833,3539.9,3539.8,7.0435861]
[1754283601188,0.4791,3540.0,3539.9,2.611]
[1754283601381,1.3646,3540.0,3539.9,2.611]
[1754283601584,2.027,3540.0,3539.9,2.611]
[1754283602389,3.2078,3540.2,3540.1,2.611]
[1754283602587,3.2078,3540.2,3540.1,6.4785961]
[1754283603087,4.6187,3540.2,3540.1,6.4785961]
[1754283603287,5.0978,3540.2,3540.1,6.4785961]
[1754283603889,3.2078,3540.2,3540.1,6.4785961]
[1754283604681,3.7332,3540.2,3540.1,6.4785961]
[1754283605590,0.5254,3540.2,3540.1,6.4785961]
[1754283606691,2.5524,3540.4,3540.3,1.0154]
[1754283606887,2.5524,3540.4,3540.3,2.611]
[1754283607193,1.6444,3540.9,3540.8,1.58023]
[1754283607390,2.5524,3540.9,3540.8,3.17583]
[1754283608996,2.5524,3540.9,3540.8,0.56483]
[1754283610094,2.5524,3540.9,3540.8,1.03773]
[1754283610398,2.5524,3540.9,3540.8,0.56483]
[1754283613595,2.5524,3540.9,3540.8,3.17583]
[1754283614098,2.5524,3540.9,3540.8,3.12893]
[1754283615003,2.5524,3540.9,3540.8,2.60373]
[1754283616001,2.5524,3540.9,3540.8,3.12893]
[1754283617103,1.0,3541.0,3540.9,2.584]
[1754283617407,3.5848,3541.0,3540.9,2.584]
[1754283619005,3.5848,3541.0,3540.9,1.0244]
[1754283619209,2.5848,3540.4,3540.3,2.62371]
[1754283619401,2.5848,3540.4,3540.3,7.0165061]
[1754283620202,2.5848,3540.4,3540.3,3.14891]
[1754283620600,2.5848,3540.4,3540.3,2.62371]
[1754283621003,1.5802,3539.8,3539.7,45.01491]
[1754283621204,2.5848,3539.8,3539.7,64.84021]
[1754283621600,2.1075,3539.8,3539.7,65.36541]
[1754283621809,3.2078,3540.5,3539.7,65.36541]
[1754283621810,0.6716,3540.3,3540.2,2.12453]
[1754283622006,2.5848,3540.3,3540.2,3.14893]
[1754283622201,2.5848,3540.3,3540.0,0.56496]
[1754283622503,0.7308,3540.0,3539.9,0.56498]
[1754283622707,5.7926,3540.0,3539.9,0.56498]
[1754283625612,5.7926,3540.0,3539.9,2.62378]
[1754283628611,5.7926,3540.0,3539.9,3.14898]
[1754283629506,4.7727,3540.0,3539.9,2.62378]
[1754283629702,5.7926,3540.0,3539.9,3.14898]
[1754283641921,5.7926,3540.0,3539.9,22.50598]
[1754283645320,5.7592,3540.0,3539.9,22.42848]
[1754283657827,2.5514,3540.0,3539.9,22.42848]
[1754283658232,5.7923,3540.4,3540.3,2.56301]
[1754283658445,6.81466201,3540.4,3540.3,2.56301]
[1754283658727,6.81466202,3540.4,3540.3,2.56301]
[1754283658924,6.81466202,3540.4,3540.3,0.92161]
[1754283659123,6.81466202,3540.4,3540.3,0.56491]
[1754283661636,6.81466202,3540.4,3540.3,1.02751]
[1754283661838,6.81466202,3540.4,3540.3,1.38421]
[1754283662032,6.81466202,3540.4,3540.3,1.89251]
[1754283665137,6.81466202,3540.4,3540.3,2.24241]
[1754283665440,6.81466202,3540.4,3540.3,0.56491]
[1754283665636,0.82596754,3540.4,3540.3,6.9831061]
[1754283665837,0.82596754,3540.7,3540.6,3.11546]
[1754283666030,0.1963412,3540.7,3540.6,26.3360561]
[1754283666234,1.0,3541.0,3540.9,2.65282]
[1754283666430,1.0,3541.0,3540.9,26.3360161]
[1754283670642,1.0,3541.0,3540.9,24.8126161]
[1754283670849,3.5845,3541.0,3540.9,19.91482]
[1754283671146,3.5845,3541.0,3540.9,0.56482]
[1754283674341,2.4859,3540.9,3540.8,0.56482]
[1754283675246,2.4859,3540.1,3540.0,2.12036]
[1754283675438,2.4859,3540.1,3540.0,21.37976]
[1754283675640,2.4859,3540.1,3540.0,21.92026]
[1754283675849,2.4859,3540.1,3540.0,22.46216]
[1754283676245,2.4859,3540.1,3540.0,26.3297561]
[1754283676549,0.863,3540.1,3540.0,26.3297561]
[1754283676747,2.4859,3540.1,3540.0,26.3297561]
[1754283678751,4.7217,3540.3,3540.2,1.57983]
[1754283678946,3.2078,3540.3,3540.2,22.46213]
[1754283679450,4.0708,3540.3,3540.2,22.46213]
[1754283679750,5.6937,3540.3,3540.2,22.46213]
[1754283682754,4.77121,3540.3,3540.2,19.347]
[1754283682957,0.9985,3539.9,3539.8,0.56498]
[1754283683159,0.9985,3539.9,3539.8,19.91098]
[1754283683359,2.4859,3539.9,3539.8,22.46118]
[1754283686966,0.9985,3540.1,3540.0,1.57985]
[1754283687264,2.4859,3540.1,3540.0,21.3553]
[1754283688068,2.4859,3540.1,3540.0,21.8972]
[1754283689762,2.4859,3540.1,3540.0,21.3553]
[1754283689964,2.4859,3540.1,3540.0,20.8148]
[1754283691270,2.4859,3540.1,3540.0,21.3553]
[1754283694866,1.4874,3540.0,3539.4,0.9934]
[1754283695065,2.4859,3539.5,3539.4,1.38315]
[1754283695261,2.4859,3539.5,3539.4,20.72915]
[1754283695465,2.4859,3539.5,3539.4,0.3562]
[1754283695669,2.4859,3539.1,3538.9,19.48213]
[1754283695967,0.9985,3539.0,3538.9,21.19693]
[1754283696168,2.4859,3539.0,3538.9,21.49043]
[1754283698174,2.4859,3539.0,3538.9,22.03233]
[1754283700163,0.56505,3539.5,3539.2,0.56509]
[1754283700366,2.4859,3539.3,3539.2,22.46129]
[1754283701674,0.9985,3539.8,3539.7,1.0149]
[1754283701869,1.5139,3539.8,3539.7,3.11521]
[1754283702066,2.4859,3539.8,3539.7,3.11521]
[1754283703870,2.4859,3539.8,3539.7,2.57331]
[1754283706073,2.5287,3539.8,3539.7,2.58881]
[1754283706275,2.5287,3539.8,3539.7,3.10561]
[1754283707775,2.5287,3539.8,3539.7,2.58881]
[1754283708278,2.5287,3539.8,3539.7,3.10561]
[1754283714681,3.0937,3539.8,3539.6,19.347]
[1754283714877,1.5294,3539.7,3539.6,19.347]
[1754283715082,1.001,3539.5,3539.4,19.343]
[1754283715283,2.5304,3539.5,3539.4,19.343]
[1754283715486,2.5304,3539.5,3539.4,20.1493]
[1754283715679,2.5304,3539.5,3539.4,21.3301]
[1754283717083,2.5304,3539.5,3539.4,19.343]
[1754283717586,2.5304,3539.5,3539.4,21.8469]
[1754283718184,2.5304,3539.5,3539.4,1.9871]
[1754283718789,2.5304,3539.5,3539.4,2.5039]
[1754283719192,3.35939692,3539.5,3539.4,2.5039]
[1754283719486,3.35939692,3539.5,3539.4,1.9871]
[1754283720883,3.35939692,3539.5,3539.4,2.5039]
[1754283721794,2.39504692,3539.5,3539.3,19.343]
[1754283721986,2.5304,3539.4,3539.3,19.343]
[1754283722188,3.35971902,3539.4,3539.3,19.343]
[1754283722490,0.9944,3539.3,3539.2,19.90708]
[1754283722690,3.35984329,3539.3,3539.2,19.90708]
[1754283722893,1.001,3539.1,3539.0,2.55221]
[1754283723189,2.5304,3539.1,3539.0,21.89421]
[1754283723392,2.5304,3539.1,3539.0,22.41101]
[1754283727795,2.5304,3539.1,3539.0,21.89421]
[1754283727995,2.5304,3539.1,3539.0,19.342]
[1754283728293,3.35998446,3539.1,3539.0,19.8095]
[1754283728498,2.0453,3538.4,3538.3,0.56523]
[1754283728693,2.5304,3538.4,3538.3,3.06913]
[1754283729689,1.5103,3538.4,3538.3,3.06913]
[1754283730087,1.9954,3539.1,3539.0,0.56511]
[1754283730290,3.35913546,3539.1,3539.0,3.06901]
[1754283730598,2.33903546,3539.1,3539.0,3.06901]
[1754283731099,1.5103,3539.1,3539.0,3.06901]
[1754283731298,2.5304,3539.1,3539.0,3.06901]
[1754283731500,2.0453,3539.1,3539.0,3.06901]
[1754283731698,2.0453,3539.5,3539.4,2.5039]
[1754283732001,3.04461555,3539.5,3539.4,2.5039]
[1754283732194,2.87408127,3539.5,3539.4,2.5039]
[1754283732394,3.35918127,3539.5,3539.4,2.5039]
[1754283733102,3.35918127,3539.5,3539.4,3.06896]
[1754283733602,3.35918127,3539.5,3539.4,2.55216]
[1754283734101,3.35918127,3539.5,3539.4,3.08216]
[1754283736201,3.35918127,3539.5,3539.4,2.55216]